bitfinex/quotes_SOLUSD_20250616
["timestamp","ask_amount","ask_price","bid_price","bid_amount"]
[1750101891906,10.04149629,158.56,158.55,14.19616108]
[1750101892062,10.04149629,158.56,158.55,6.68575862]
[1750101892470,10.04149629,158.56,158.55,14.19616108]
[1750101892978,10.04149629,158.56,158.55,6.68575862]
[1750101893178,10.04149629,158.56,158.55,14.19616108]
[1750101895893,10.04149629,158.56,158.55,114.94580994]
[1750101896575,18.37678943,158.59,158.55,164.62410896]
[1750101896777,18.37678943,158.59,158.58,33.51040246]
[1750101897605,18.37678943,158.59,158.58,26.0]
[1750101897772,18.37678943,158.59,158.58,39.8163679]
[1750101900285,18.37678943,158.59,158.58,32.30596544]
[1750101900611,1.5489,158.75,158.66,26.0]
[1750101900781,1.5489,158.75,158.7,26.0]
[1750101901278,1.5489,158.75,158.71,6.3008002]
[1750101901478,7.51040246,158.78,158.71,22.0528007]
[1750101901684,7.51040246,158.75,158.71,6.3008002]
[1750101901896,0.14216157,158.78,158.71,13.81120266]
[1750101902110,10.32669126,158.79,158.71,6.3008002]
[1750101902281,29.28601128,158.8,158.71,6.3008002]
[1750101902596,18.64964886,158.79,158.71,22.0528007]
[1750101902795,18.64964886,158.79,158.73,7.51040246]
[1750101903007,18.64964886,158.79,158.71,22.0528007]
[1750101903306,1.6246,158.81,158.74,7.51040246]
[1750101903506,1.6246,158.81,158.74,26.0]
[1750101903711,26.44830461,158.84,158.74,26.0]
[1750101904002,1.503,158.84,158.74,26.0]
[1750101904399,26.0,158.81,158.71,76.49194956]
[1750101904708,6.2604,158.81,158.71,22.0528007]
[1750101905009,27.6326,158.77,158.69,6.3015943]
[1750101905190,7.51040246,158.72,158.69,6.3015943]
[1750101905511,7.51040246,158.72,158.65,23.83787821]
[1750101905512,7.51040246,158.7,158.66,6.30278583]
[1750101905806,7.51040246,158.69,158.66,6.30278583]
[1750101906516,26.14216157,158.72,158.66,6.30278583]
[1750101906714,7.51040246,158.69,158.66,6.30278583]
[1750101907116,14.43080004,158.7,158.66,6.30278583]
[1750101907295,14.43080004,158.7,158.64,6.117]
[1750101907296,21.9412025,158.7,158.65,6.3031831]
[1750101907491,21.9412025,158.7,158.65,13.81358556]
[1750101907690,7.51040246,158.69,158.65,6.3031831]
[1750101907893,14.43080004,158.7,158.67,7.51040246]
[1750101908101,14.43080004,158.7,158.65,6.3031831]
[1750101908290,14.43080004,158.7,158.65,13.81358556]
[1750101908603,21.9412025,158.7,158.65,6.3031831]
[1750101908801,21.9412025,158.7,158.65,13.81358556]
[1750101909014,21.9412025,158.7,158.65,6.3031831]
[1750101909211,7.51040246,158.69,158.65,7.51040246]
[1750101910108,7.51040246,158.69,158.63,32.3039778]
[1750101910431,7.51040246,158.67,158.63,6.3039778]
[1750101910714,7.51040246,158.67,158.63,13.81438026]
[1750101911011,7.51040246,158.68,158.63,39.81438026]
[1750101911201,7.51040246,158.67,158.63,32.3039778]
[1750101911515,16.05990004,158.7,158.63,32.3039778]
[1750101912020,7.51040246,158.65,158.63,32.3039778]
[1750101912199,7.51040246,158.66,158.63,32.3039778]
[1750101913725,22.36119053,158.7,158.63,32.3039778]
[1750101913915,7.51040246,158.67,158.63,39.81438026]
[1750101914341,7.51040246,158.68,158.63,39.81438026]
[1750101915024,7.51040246,158.67,158.63,32.3039778]
[1750101916032,22.36117189,158.7,158.63,32.3039778]
[1750101916227,7.51040246,158.67,158.63,32.6825778]
[1750101916440,14.43080004,158.7,158.63,40.19298026]
[1750101916656,14.43080004,158.7,158.68,7.51040246]
[1750101916829,14.43080004,158.7,158.67,7.51040246]
[1750101917765,14.43080004,158.7,158.68,7.51040246]
[1750101917975,14.43080004,158.7,158.68,13.81239388]
[1750101918871,14.43080004,158.7,158.68,6.30199142]
[1750101919080,14.43080004,158.7,158.69,7.51040246]
[1750101919249,14.43080004,158.7,158.68,6.30199142]
[1750101919663,14.43080004,158.7,158.69,7.51040246]
[1750101919864,14.43080004,158.7,158.68,6.30199142]
[1750101920878,14.43080004,158.7,158.69,6.3015943]
[1750101921248,1.5602,158.75,158.69,22.05558005]
[1750101921575,1.5602,158.75,158.71,7.51040246]
[1750101921773,15.7350734,158.74,158.71,7.51040246]
[1750101921949,15.7350734,158.74,158.72,6.30040322]
[1750101922355,9.07060246,158.75,158.72,6.30040322]
[1750101924083,7.51040246,158.74,158.71,6.3008002]
[1750101924675,9.07060246,158.75,158.71,6.3008002]
[1750101924873,1.5602,158.75,158.71,6.3008002]
[1750101925061,9.07060246,158.75,158.71,6.3008002]
[1750101925253,1.5602,158.75,158.69,15.75398575]
[1750101925450,9.07060246,158.75,158.71,7.51040246]
[1750101925679,9.07060246,158.75,158.7,7.51040246]
[1750101926261,9.07060246,158.75,158.7,82.1]
[1750101926262,1.5602,158.75,158.7,82.1]
[1750101926466,7.51040246,158.74,158.7,89.61040246]
[1750101926773,1.5602,158.75,158.7,82.1]
[1750101926980,1.5602,158.75,158.7,89.61040246]
[1750101927176,1.5602,158.75,158.7,82.1]
[1750101927477,9.07060246,158.75,158.72,6.30040322]
[1750101928052,1.5602,158.75,158.72,13.81080568]
[1750101928278,1.5602,158.75,158.72,6.30040322]
[1750101928879,1.5292,158.79,158.72,22.05141128]
[1750101929248,7.51040246,158.76,158.72,22.05141128]
[1750101929479,1.5292,158.79,158.72,7.51040246]
[1750101929781,7.51040246,158.76,158.69,18.64964886]
[1750101929956,7.51040246,158.75,158.69,18.64964886]
[1750101930286,14.7976964,158.75,158.69,18.64964886]
[1750101930466,14.7976964,158.75,158.71,7.51040246]
[1750101930788,14.7976964,158.75,158.72,7.51040246]
[1750101931079,14.7976964,158.75,158.71,7.51040246]
[1750101931379,7.51040246,158.76,158.72,6.30040322]
[1750101931579,7.51040246,158.75,158.72,6.30040322]
[1750101931965,7.82683635,158.79,158.72,6.30040322]
[1750101932264,7.51040246,158.75,158.72,6.30040322]
[1750101932754,7.51040246,158.75,158.7,22.05407416]
[1750101932956,7.82683635,158.79,158.7,22.05407416]
[1750101933163,7.82683635,158.79,158.71,7.51040246]
[1750101933382,1.5292,158.79,158.72,7.51040246]
[1750101933578,7.51040246,158.76,158.7,22.05407416]
[1750101933771,7.51040246,158.75,158.71,7.51040246]
[1750101934093,7.51040246,158.76,158.71,89.61040246]
[1750101934461,7.51040246,158.76,158.72,7.51040246]
[1750101934787,7.82690101,158.79,158.72,7.51040246]
[1750101934991,7.51040246,158.74,158.72,88.40031671]
[1750101935288,22.12841494,158.74,158.72,88.40031671]
[1750101935874,14.61801248,158.74,158.72,88.40031671]
[1750101936500,22.12841494,158.74,158.72,88.40031671]
[1750101937076,14.61801248,158.74,158.72,88.40031671]
[1750101938383,22.12841494,158.74,158.72,88.77891671]
[1750101938894,14.61801248,158.74,158.72,88.77891671]
[1750101940791,1.5292,158.79,158.72,22.42992477]
[1750101940988,9.03960246,158.79,158.74,7.51040246]
[1750101941207,7.51040246,158.78,158.74,7.51040246]
[1750101941401,1.5292,158.79,158.74,7.51040246]
[1750101941604,7.51040246,158.78,158.74,7.51040246]
[1750101941808,7.51040246,158.78,158.75,6.29921259]
[1750101942320,9.03960246,158.79,158.75,6.29921259]
[1750101942493,1.5292,158.79,158.75,6.29921259]
[1750101942688,9.03960246,158.79,158.75,6.29921259]
[1750101943191,1.5292,158.79,158.76,7.51040246]
[1750101943598,20.87905971,158.84,158.78,7.51040246]
[1750101943794,7.51040246,158.83,158.8,6.29722921]
[1750101944188,7.51040246,158.82,158.8,6.29722921]
[1750101945488,20.87905971,158.84,158.79,6.29756646]
[1750101945912,7.51040246,158.82,158.79,6.29756646]
[1750101946098,20.87905971,158.84,158.78,6.29802242]
[1750101946294,7.51040246,158.8,158.78,6.29802242]
[1750101946695,7.51040246,158.79,158.76,6.29881582]
[1750101947505,7.51040246,158.8,158.76,6.29881582]
[1750101947707,7.51040246,158.8,158.76,13.80921828]
[1750101947916,7.51040246,158.8,158.76,6.29881582]
[1750101948902,7.51040246,158.79,158.76,6.29881582]
[1750101949518,6.29650225,158.82,158.76,6.29881582]
[1750101949690,7.51040246,158.79,158.76,6.29881582]
[1750101949890,7.51040246,158.79,158.76,88.39881582]
[1750101952192,32.29618475,158.83,158.76,88.39881582]
[1750101952396,7.51040246,158.8,158.76,88.39881582]
[1750101952613,7.51040246,158.79,158.76,88.39881582]
[1750101953315,6.29651781,158.82,158.76,88.39881582]
[1750101953616,7.51040246,158.79,158.76,88.39881582]
[1750101954519,6.29651781,158.82,158.76,88.39881582]
[1750101954719,7.51040246,158.79,158.76,88.39881582]
[1750101957322,7.51040246,158.8,158.76,88.39881582]
[1750101957492,7.51040246,158.78,158.76,88.39881582]
[1750101958104,0.14216157,158.82,158.76,82.1]
[1750101958311,7.51040246,158.77,158.76,82.1]
[1750101958721,7.51040246,158.77,158.74,6.29926945]
[1750101958924,7.51040246,158.76,158.74,88.39926945]
[1750101959098,21.9628474,158.76,158.74,88.39926945]
[1750101961306,14.45244494,158.76,158.74,88.39926945]
[1750101962702,14.45244494,158.76,158.74,13.80967191]
[1750101962898,14.45244494,158.76,158.74,6.29926945]
[1750101964221,14.45244494,158.76,158.74,13.80967191]
[1750101964441,13.95244494,158.76,158.74,13.80967191]
[1750101964633,13.95244494,158.76,158.74,6.29926945]
[1750101966259,13.95244494,158.76,158.75,7.51040246]
[1750101966414,13.95244494,158.76,158.74,6.29926945]
[1750101966610,13.95244494,158.76,158.75,7.51040246]
[1750101967751,13.95244494,158.76,158.75,13.80961505]
[1750101967966,13.95244494,158.76,158.75,6.29921259]
[1750101968317,1.5103,158.82,158.75,6.29921259]
[1750101968517,7.51040246,158.79,158.75,88.39921259]
[1750101969323,7.01040246,158.79,158.75,88.39921259]
[1750101969857,7.01040246,158.79,158.75,95.90961505]
[1750101970424,7.51040246,158.8,158.75,88.39921259]
[1750101970649,7.51040246,158.76,158.75,88.39921259]
[1750101970849,7.51040246,158.8,158.75,88.39921259]
[1750101971058,7.51040246,158.76,158.75,88.39921259]
[1750101971263,7.51040246,158.8,158.75,88.39921259]
[1750101971471,7.51040246,158.76,158.75,82.1]
[1750101971851,7.51040246,158.8,158.75,88.39921259]
[1750101972056,7.51040246,158.76,158.75,88.39921259]
[1750101973055,7.51040246,158.76,158.75,82.1]
[1750101973375,7.51040246,158.76,158.75,88.39921259]
[1750101973688,0.14216157,158.81,158.75,88.39921259]
[1750101973844,7.51040246,158.77,158.75,88.39921259]
[1750101974370,7.51040246,158.76,158.75,88.39921259]
[1750101974543,7.51040246,158.77,158.75,88.39921259]
[1750101974972,0.14216157,158.81,158.75,88.39921259]
[1750101975480,7.51040246,158.77,158.75,88.39921259]
[1750101976576,0.14216157,158.81,158.75,88.39921259]
[1750101976766,7.51040246,158.76,158.75,88.39921259]
[1750101977270,7.51040246,158.76,158.75,6.29921259]
[1750101977849,7.51040246,158.76,158.74,6.67808456]
[1750101978174,7.51040246,158.75,158.74,0.3786]
[1750101979683,0.14216157,158.75,158.66,6.30278583]
[1750101979856,7.51040246,158.7,158.66,6.30278583]
[1750101980167,7.51040246,158.7,158.66,22.05949064]
[1750101980559,7.51040246,158.68,158.66,6.30278583]
[1750101980770,7.51040246,158.67,158.64,6.30358043]
[1750101980978,7.51040246,158.65,158.61,6.30477271]
[1750101981160,7.51040246,158.63,158.61,6.30477271]
[1750101981551,7.51040246,158.62,158.61,6.30477271]
[1750101981856,7.51040246,158.63,158.61,6.30477271]
[1750101982168,7.51040246,158.63,158.59,22.06919154]
[1750101982476,9.04630246,158.64,158.59,6.30556781]
[1750101982777,7.51040246,158.6,158.59,88.40556781]
[1750101983449,7.51040246,158.62,158.59,88.40556781]
[1750101983770,7.51040246,158.63,158.59,88.40556781]
[1750101984154,1.5359,158.64,158.62,6.30437523]
[1750101984749,1.5359,158.68,158.62,22.06531332]
[1750101984944,7.51040246,158.65,158.62,22.06531332]
[1750101985152,1.5359,158.68,158.62,22.06531332]
[1750101985452,7.51040246,158.67,158.62,29.57571578]
[1750101985876,7.51040246,158.67,158.62,22.06531332]
[1750101986065,7.51040246,158.66,158.62,22.06531332]
[1750101986368,9.04630246,158.68,158.64,7.51040246]
[1750101986671,1.5359,158.68,158.64,7.51040246]
[1750101988172,9.04630246,158.68,158.64,7.51040246]
[1750101988370,9.04630246,158.68,158.65,22.06114086]
[1750101988767,33.94,158.71,158.65,22.06114086]
[1750101988768,35.5167,158.71,158.65,22.06114086]
[1750101988968,7.51040246,158.68,158.65,22.06114086]
[1750101989554,7.51040246,158.69,158.65,22.06114086]
[1750101989982,7.51040246,158.68,158.65,22.06114086]
[1750101990288,7.51040246,158.69,158.65,22.06114086]
[1750101990459,35.5167,158.71,158.65,22.06114086]
[1750101990460,7.51040246,158.68,158.65,22.06114086]
[1750101990872,35.5167,158.71,158.65,22.06114086]
[1750101991081,7.51040246,158.7,158.65,29.57154332]
[1750101991380,7.51040246,158.7,158.65,111.67154332]
[1750101991777,7.51040246,158.7,158.65,104.16114086]
[1750101991962,1.5767,158.71,158.68,7.51040246]
[1750101992167,1.71886157,158.75,158.68,89.61040246]
[1750101992474,7.51040246,158.72,158.69,6.3015943]
[1750101992670,7.51040246,158.71,158.69,6.3015943]
[1750101992867,7.51040246,158.71,158.69,88.4015943]
[1750101993785,7.51040246,158.72,158.69,88.4015943]
[1750101994161,7.51040246,158.7,158.69,88.4015943]
[1750101994358,7.51040246,158.71,158.69,88.4015943]
[1750101994768,7.51040246,158.7,158.69,88.4015943]
[1750101996481,7.51040246,158.7,158.69,82.1]
[1750101997166,7.51040246,158.7,158.65,82.1]
[1750101997378,7.51040246,158.67,158.65,82.1]
[1750101998188,7.51040246,158.67,158.66,6.30269927]
[1750102000992,7.51040246,158.67,158.65,82.1]
[1750102001169,7.51040246,158.66,158.65,88.40314722]
[1750102001378,1.5921,158.67,158.65,88.40314722]
[1750102001589,7.51040246,158.66,158.65,88.40314722]
[1750102002276,1.5921,158.67,158.65,88.40314722]
[1750102002474,7.51040246,158.66,158.65,88.40314722]
[1750102002681,7.51040246,158.66,158.65,6.30314722]
[1750102003297,7.51040246,158.66,158.63,6.3039778]
[1750102003886,7.51040246,158.65,158.63,6.3039778]
[1750102005466,1.5921,158.67,158.63,6.3039778]
[1750102005780,7.51040246,158.64,158.62,88.40436314]
[1750102005997,7.51040246,158.63,158.62,88.40436314]
[1750102006197,7.51040246,158.63,158.62,82.1]
[1750102006505,7.51040246,158.63,158.62,88.40437523]
[1750102006998,7.51040246,158.65,158.62,6.30437523]
[1750102007370,7.51040246,158.64,158.62,6.30437523]
[1750102007574,7.51040246,158.64,158.61,15.76190713]
[1750102007774,7.51040246,158.63,158.61,15.76190713]
[1750102008293,7.51040246,158.63,158.6,6.30517023]
[1750102008484,27.5921,158.67,158.6,6.30517023]
[1750102009005,7.51040246,158.63,158.6,6.30517023]
[1750102009492,7.51040246,158.64,158.59,23.274322]
[1750102010007,1.5921,158.67,158.6,7.51040246]
[1750102010190,7.51040246,158.65,158.6,7.51040246]
[1750102010386,7.51040246,158.64,158.59,23.274322]
[1750102011091,7.51040246,158.64,158.59,29.57988981]
[1750102012191,1.5921,158.67,158.59,29.57988981]
[1750102012500,7.51040246,158.64,158.59,29.57988981]
[1750102012706,7.51040246,158.65,158.6,7.51040246]
[1750102013593,7.51040246,158.64,158.59,23.652922]
[1750102014302,7.51040246,158.64,158.59,29.95848981]
[1750102016110,27.5921,158.67,158.6,7.51040246]
[1750102016293,7.51040246,158.65,158.6,7.51040246]
[1750102016495,7.51040246,158.64,158.59,29.95848981]
[1750102017507,7.51040246,158.63,158.59,22.44808735]
[1750102017810,7.51040246,158.63,158.59,104.54808735]
[1750102018106,26.0,158.66,158.6,7.51040246]
[1750102018304,7.51040246,158.64,158.6,7.51040246]
[1750102019203,7.51040246,158.64,158.59,104.54808735]
[1750102019513,7.51040246,158.64,158.6,7.51040246]
[1750102020210,7.51040246,158.64,158.61,6.30477271]
[1750102021509,7.51040246,158.63,158.61,6.30477271]
[1750102021916,7.51040246,158.62,158.61,6.30477271]
[1750102022091,9.11340246,158.62,158.59,88.78412903]
[1750102022290,7.51040246,158.61,158.59,88.78410657]
[1750102022492,1.603,158.62,158.59,6.68410657]
[1750102022493,9.11340246,158.62,158.59,6.68410657]
[1750102023282,26.0,158.64,158.6,7.51040246]
[1750102023283,1.603,158.64,158.6,7.51040246]
[1750102023527,26.0,158.66,158.61,7.51040246]
[1750102023701,7.51040246,158.65,158.59,22.44802611]
[1750102024013,33.51040246,158.66,158.6,7.51040246]
[1750102024184,1.603,158.68,158.61,22.06670449]
[1750102024510,7.51040246,158.66,158.61,22.06670449]
[1750102024699,7.51040246,158.65,158.61,22.06670449]
[1750102025988,7.51040246,158.65,158.61,15.76193178]
[1750102027390,7.51040246,158.65,158.61,22.06670449]
[1750102029314,7.51040246,158.65,158.61,29.57710695]
[1750102029503,7.51040246,158.66,158.61,29.57710695]
[1750102030298,7.51040246,158.66,158.61,22.06670449]
[1750102030699,7.51040246,158.66,158.61,29.57710695]
[1750102032209,7.51040246,158.66,158.61,22.06670449]
[1750102032396,7.51040246,158.66,158.61,29.57710695]
[1750102032798,7.51040246,158.65,158.61,22.06670449]
[1750102033723,26.0,158.65,158.59,6.30556781]
[1750102034023,7.51040246,158.62,158.59,6.30556781]
[1750102035011,7.51040246,158.62,158.58,6.30596544]
[1750102035206,7.51040246,158.61,158.58,6.30596544]
[1750102036129,1.5412,158.62,158.58,6.30596544]
[1750102036309,7.51040246,158.6,158.58,6.30596544]
[1750102037223,7.51040246,158.6,158.56,6.30676084]
[1750102037410,1.5412,158.62,158.56,29.58406541]
[1750102037607,7.51040246,158.61,158.56,29.58406541]
[1750102038709,9.05160246,158.62,158.57,7.51040246]
[1750102039220,1.5412,158.62,158.57,7.51040246]
[1750102039421,1.5412,158.62,158.58,6.30596544]
[1750102039820,9.05160246,158.62,158.58,6.30596544]
[1750102042342,1.5412,158.62,158.59,7.51040246]
[1750102042640,33.51040246,158.64,158.59,7.51040246]
[1750102042812,7.51040246,158.65,158.6,7.51040246]
[1750102043424,7.51040246,158.64,158.6,7.51040246]
[1750102044139,7.51040246,158.64,158.61,6.30477271]
[1750102044345,1.6584,158.66,158.61,6.30477271]
[1750102044503,7.51040246,158.63,158.61,6.30477271]
[1750102044940,7.51040246,158.64,158.61,6.30477271]
[1750102045313,7.51040246,158.64,158.61,6.68337271]
[1750102045748,1.6584,158.66,158.61,14.19377517]
[1750102045940,7.51040246,158.65,158.61,22.44530449]
[1750102046137,7.51040246,158.64,158.61,22.44530449]
[1750102046334,1.6584,158.66,158.61,22.44530449]
[1750102046643,7.51040246,158.65,158.61,22.44530449]
[1750102048350,7.51040246,158.64,158.61,22.44530449]
[1750102048956,7.51040246,158.63,158.61,6.68337271]
[1750102049128,7.51040246,158.64,158.61,6.68337271]
[1750102049331,1.6584,158.66,158.61,6.68337271]
[1750102049553,7.51040246,158.64,158.61,6.68337271]
[1750102050342,7.51040246,158.64,158.61,88.78337271]
[1750102052440,1.6584,158.66,158.61,88.78337271]
[1750102052644,7.51040246,158.65,158.61,88.78337271]
[1750102053233,7.51040246,158.64,158.61,88.78337271]
[1750102054051,7.51040246,158.65,158.61,88.78337271]
[1750102054552,1.6584,158.66,158.61,112.05570695]
[1750102054734,7.51040246,158.65,158.61,112.05570695]
[1750102054938,5.82517064,158.72,158.66,18.64964886]
[1750102055255,7.76689418,158.74,158.66,18.64964886]
[1750102055256,1.6615,158.76,158.68,18.64964886]
[1750102055466,1.6615,158.76,158.66,82.1]
[1750102055467,7.48667064,158.76,158.66,82.1]
[1750102055632,26.0,158.75,158.68,7.51040246]
[1750102055837,1.6615,158.76,158.68,7.51040246]
[1750102056152,7.51040246,158.74,158.66,110.8]
[1750102056355,7.51040246,158.73,158.66,110.8]
[1750102056531,26.0,158.75,158.69,13.81199676]
[1750102056738,7.51040246,158.74,158.69,6.3015943]
[1750102056951,7.51040246,158.74,158.69,13.81199676]
[1750102057252,7.51040246,158.73,158.69,6.3015943]
[1750102057556,7.51040246,158.74,158.69,13.81199676]
[1750102057744,33.51040246,158.74,158.69,13.81199676]
[1750102058053,33.51040246,158.74,158.69,6.3015943]
[1750102058250,26.0,158.74,158.69,6.3015943]
[1750102058859,7.51040246,158.73,158.69,6.3015943]
[1750102059359,7.51040246,158.71,158.69,6.3015943]
[1750102059554,1.6393,158.69,158.66,6.30278583]
[1750102059761,1.6393,158.69,158.64,6.30358043]
[1750102059762,7.51040246,158.67,158.64,6.30358043]
[1750102059965,9.14970246,158.69,158.64,13.81398289]
[1750102060864,9.14970246,158.69,158.64,22.06253151]
[1750102061046,1.6393,158.69,158.65,7.51040246]
[1750102061250,7.51040246,158.71,158.67,7.51040246]
[1750102061558,7.51040246,158.71,158.67,89.61040246]
[1750102061932,33.51040246,158.72,158.67,89.61040246]
[1750102062149,33.51040246,158.72,158.68,13.81239388]
[1750102062350,26.0,158.72,158.68,88.40199142]
[1750102062554,9.17560246,158.73,158.68,95.91239388]
[1750102063149,9.17560246,158.73,158.68,88.40199142]
[1750102063352,9.17560246,158.73,158.68,95.91239388]
[1750102063541,1.6652,158.73,158.68,95.91239388]
[1750102063855,35.17560246,158.73,158.68,95.91239388]
[1750102064165,27.6652,158.73,158.69,7.51040246]
[1750102064343,1.6652,158.73,158.69,7.51040246]
[1750102065566,1.6652,158.73,158.7,6.30119722]
[1750102066067,9.17560246,158.73,158.7,6.30119722]
[1750102066269,1.6652,158.73,158.7,6.30119722]
[1750102066564,9.17560246,158.73,158.7,6.30119722]
[1750102067145,7.51040246,158.72,158.69,6.68010708]
[1750102070666,1.6652,158.73,158.69,22.43409283]
[1750102070864,1.6652,158.73,158.69,29.94449529]
[1750102072541,1.6652,158.73,158.69,22.43409283]
[1750102072741,1.6652,158.73,158.69,29.94449529]
[1750102073141,1.6652,158.73,158.69,22.43409283]
[1750102073373,1.6652,158.73,158.69,29.94449529]
[1750102074046,1.6652,158.73,158.69,112.04449529]
[1750102074372,7.51040246,158.72,158.69,88.78010708]
[1750102074737,1.6652,158.73,158.69,88.78010708]
[1750102074942,9.17560246,158.73,158.69,88.78010708]
[1750102075547,9.17560246,158.73,158.69,6.68010708]
[1750102075775,1.6652,158.73,158.69,14.19050954]
[1750102075968,1.6652,158.73,158.69,29.94449529]
[1750102077773,1.6652,158.73,158.7,7.51040246]
[1750102079068,1.6652,158.73,158.71,6.3008002]
[1750102079271,7.51040246,158.75,158.71,6.3008002]
[1750102079968,12.84725177,158.76,158.71,6.3008002]
[1750102080154,7.51040246,158.75,158.71,6.3008002]
[1750102080959,7.51040246,158.74,158.71,6.3008002]
[1750102081152,12.84725177,158.76,158.71,6.3008002]
[1750102081358,7.51040246,158.74,158.71,6.3008002]
[1750102082049,7.51040246,158.75,158.71,6.3008002]
[1750102084479,12.84725177,158.76,158.71,22.0528007]
[1750102084666,12.84725177,158.76,158.71,29.56320316]
[1750102084869,7.51040246,158.75,158.71,29.56320316]
[1750102085267,12.84725177,158.76,158.71,22.0528007]
[1750102085467,12.84725177,158.76,158.71,29.56320316]
[1750102085677,7.51040246,158.75,158.71,29.56320316]
[1750102085876,7.51040246,158.75,158.71,22.0528007]
[1750102086170,7.51040246,158.74,158.71,6.3008002]
[1750102086555,7.51040246,158.74,158.7,6.30119722]
[1750102086899,7.51040246,158.75,158.7,6.30119722]
[1750102087054,12.84725177,158.76,158.7,6.30119722]
[1750102087055,7.51040246,158.74,158.7,6.30119722]
[1750102088261,7.51040246,158.74,158.7,6.67979722]
[1750102089571,7.51040246,158.73,158.7,6.67979722]
[1750102089887,7.51040246,158.72,158.7,6.67979722]
[1750102090978,7.51040246,158.73,158.7,6.67979722]
[1750102091858,7.51040246,158.71,158.7,0.3786]
[1750102093284,6.29982706,158.74,158.7,0.3786]
[1750102093461,7.51040246,158.71,158.7,0.3786]
[1750102096683,35.09050246,158.71,158.7,0.3786]
[1750102096866,60.18311309,158.71,158.7,0.3786]
[1750102097064,0.14216157,158.69,158.6,7.51040246]
[1750102097372,0.14216157,158.69,158.6,6.30517023]
[1750102097373,7.51040246,158.64,158.6,6.30517023]
[1750102097693,7.51040246,158.65,158.6,29.57849828]
[1750102099003,7.51040246,158.65,158.6,22.06809582]
[1750102099171,7.51040246,158.65,158.61,7.51040246]
[1750102099584,7.51040246,158.65,158.6,29.57849828]
[1750102100292,7.51040246,158.64,158.6,22.06809582]
[1750102100679,9.08060246,158.64,158.6,6.30517023]
[1750102100866,7.51040246,158.63,158.6,6.30517023]
[1750102101489,1.5702,158.64,158.6,13.81557269]
[1750102101796,1.5702,158.64,158.61,7.51040246]
[1750102102182,1.5702,158.64,158.6,13.81557269]
[1750102102499,1.5702,158.64,158.6,29.57849828]
[1750102102878,7.51040246,158.63,158.6,6.30517023]
[1750102104111,7.51040246,158.63,158.59,6.30556781]
[1750102106402,7.51040246,158.63,158.59,13.81597027]
[1750102106599,7.51040246,158.63,158.59,95.91597027]
[1750102106775,1.5702,158.64,158.59,95.91597027]
[1750102106981,1.5702,158.64,158.6,7.51040246]
[1750102107181,1.5702,158.64,158.61,7.51040246]
[1750102107818,1.5702,158.64,158.59,104.16948735]
[1750102108022,1.5702,158.64,158.61,7.51040246]
[1750102108495,1.5702,158.64,158.62,6.30437523]
[1750102110507,9.08060246,158.64,158.61,6.30477271]
[1750102110907,1.5702,158.64,158.61,6.30477271]
[1750102111520,7.51040246,158.63,158.61,6.30477271]
[1750102112292,7.51040246,158.63,158.6,6.30517023]
[1750102113314,9.08060246,158.64,158.6,6.30517023]
[1750102113720,9.08060246,158.64,158.63,0.06397536]
[1750102114801,15.38418289,158.64,158.63,0.06397536]
[1750102115005,23.03674692,158.64,158.63,0.06397536]
[1750102116727,9.22276403,158.64,158.63,0.06397536]
[1750102117422,1.71236157,158.64,158.63,0.06397536]
[1750102117603,9.22276403,158.64,158.63,0.06397536]
[1750102118199,1.71236157,158.64,158.63,0.06397536]
[1750102118402,1.5702,158.64,158.63,0.06397536]
[1750102118706,9.08060246,158.64,158.63,0.06397536]
[1750102118909,1.5702,158.64,158.63,0.06397536]
[1750102119111,9.08060246,158.64,158.63,0.06397536]
[1750102120033,1.5702,158.64,158.63,0.06397536]
[1750102120624,9.08060246,158.64,158.63,0.06397536]
[1750102121140,1.5702,158.64,158.63,0.06397536]
[1750102121502,9.08060246,158.64,158.63,0.06397536]
[1750102123829,1.5702,158.64,158.63,0.06397536]
[1750102124035,26.0,158.66,158.63,0.06397536]
[1750102124239,33.51040246,158.66,158.63,0.06397536]
[1750102124411,7.51040246,158.65,158.63,0.06397536]
[1750102125211,33.51040246,158.66,158.63,0.06397536]
[1750102126032,7.51040246,158.65,158.63,0.06397536]
[1750102128522,26.0,158.66,158.63,0.06397536]
[1750102128523,7.51040246,158.64,158.63,0.06397536]
[1750102131143,23.07634692,158.64,158.63,0.06397536]
[1750102132741,15.56594446,158.64,158.63,0.06397536]
[1750102133736,9.26236403,158.64,158.63,0.06397536]
[1750102134224,23.07634692,158.64,158.63,0.06397536]
[1750102134740,15.56594446,158.64,158.63,0.06397536]
[1750102135328,67.72599578,158.64,158.63,0.06397536]
[1750102136332,26.0,158.61,158.54,6.30755645]
[1750102136522,7.51040246,158.56,158.54,6.30755645]
[1750102136839,26.0,158.59,158.54,6.30755645]
[1750102136840,7.51040246,158.57,158.54,6.30755645]
[1750102137139,7.51040246,158.56,158.54,6.30755645]
[1750102137538,7.51040246,158.56,158.52,6.30835225]
[1750102137939,7.51040246,158.57,158.52,13.81875471]